Workbook

Sheet Ohje
B2: Rakennuksen hiilijalanjäljen arviointityökalun luonnos
B3: Luonnos lausuntokierrosta varten 16.11.2018
B5: Käyttöohje
B7: Tämä arviointityökalun luonnosversio on tarkoitettu rakennuksen hiilijalanjäljen laskentamenetelmän lausuntokierrosta varten. Työkalua ja sen liitteenä olevia päästötietoja kehitetään lausuntokierroksen jälkeen. Avoimen työkalun tarkoituksena on tukea ja edistää elinkaarilaskennan käyttöä rakennushankkeen valmistelussa, suunnittelussa, rakentamisessa ja rakennusten käytön aikana. Tämä työkalu on tarkoitettu rakennusten elinkaaren hiilijalanjäljen arviointiin ensisijaisesti silloin, kun käytetään ympäristöministeriön yksinkertaistettua arviointimenetelmää. Työkalua voidaan käyttää myös tarkennetulla arviointimenetelmällä tehtyjen laskelmien raportointiin. Arvioinnit voi tehdä myös muilla soveltuvilla työkaluilla.
B9: Työkalun sisältö
B10: Työkalun eri välilehdillä kerätään tietoa hankkeesta ja sen elinkaarivaikutuksista seuraavasti: Lähtötiedot: Käytetyn lähtötiedon luotettavuuden arviointi Tulokset: Arvioinnin tulokset, tiedot arvioitavasta kohteesta ja arvioinnin teosta Materiaalitiedot: Työkalussa käytettävien hiilijalanjäljen ja -kädenjäljen kertoimet Ennen käyttöä: Valmistuksen, kuljetuksen ja rakentamisen päästöt Materiaalit: Rakennuksessa käytettyjen materiaalien luettelointi Käyttö: Korjausten ja energiankulutuksen arviointi Loppu ja lisätiedot: Purkamisen ja jätteiden käsittelyn arviointi
B11: Laskentatietojen syöttäminen
B13: Syötä tiedot harmaisiin soluihin.
B14: Tietoja voidaan lisätä tummansinisellä otsikoituihin kohtiin. Syötä tiedot harmaapohjaisiin soluihin.
B15: Valmiit taulukkoarvot sinisissä soluissa.
B16: Yksinkertaistetussa menetelmässä suurin osa laskennan tiedoista tulee hanketyyppiin ja pinta-alaan perustuvista taulukkoarvoista. Tällaiset kohdat työkalussa on otsioitu vaaleansinisellä värillä.
B17: Lisätietoja voit syöttää vihreisiin soluihin.
B18: Jos korvaat taulukkoarvoja omin laskelmin, syötä nämä tiedot vihreisiin soluihin. Taulukkoarvon vieressä olevaa plus-merkkiä painamalla aukeaa uusi tietokenttä tätä varten. Vaalean vihreisiin soluihin syötetyt arvot korvaavat oletuksena olevat taulukkoarvot. Muista kirjata ylös, mihin tietoihin omat laskelmasi perustuvat. Esimerkki:
B20: Käyttöoikeus ja vastuuvapaus
B21: Työkalu on käytettävissä veloituksetta. Työkalun luonnosversio on tarkoitettu ainoastaan lausuntokierrosta varten. Ympäristöministeriö ei vastaa mistään vahingoista, jotka mahdollisesti aiheutuvat arviointityökalun käyttäjälle tai muulla taholle arviointityökalua käytettäessa tai muuten sovellettaessa siinä olevia toimintamalleja tai esimerkkejä.

Sheet Lähtötiedot
B2: =Ohje!B2 -> Rakennuksen hiilijalanjäljen arviointityökalun luonnos
B3: =Ohje!B3 -> Luonnos lausuntokierrosta varten 16.11.2018
B5: Lähtötietojen arviointi
B7: Tietojen laatu
B8: Arvioinnissa käytettävien tietojen laatu tulee arvioida, jos arviointi tehdään käyttäen ns. tarkennettua menetelmää. Yksinkertaistettua menetelmää käytettäessä tätä välilehteä ei tarvitse täyttää. Alla ehdotettu lähtötietojen arviointitapa perustuu Euroopan komission Level(s)-menetelmään.
B9: Elinkaaren vaiheet | C9: Teknologinen edustavuus | D9: Maan-tieteellinen edustavuus | E9: Ajallinen edustavuus | F9: Epävarmuus | G9: Yhteensä | H9: Vähimmäisvaatimukset
B11: A1–3 Tuotteiden valmistus | G11: =(SUM(C11:F11)) -> 0 | H11: Tiedot vähintään tasoa 2
B12: A4 Kuljetus työmaalle | G12: =IFERROR(SUM(C12:F12),"") -> 0 | H12: Maantieteellinen edustavuus oltava tasoa 3
B13: A5 Työmaan toiminnot | G13: 0 | H13: Maantieteellinen edustavuus vähintään tasoa 2
B14: B3–4 Korjaukset ja vaihdot | G14: 0 | H14: Maantieteellinen edustavuus vähintään tasoa 2
B15: B6 Energian kulutus | G15: 0 | H15: Tiedot vähintään tasoa 2
B16: C1 Purkutyöt | G16: 0 | H16: Ei vähimmäisvaatimuksia
B17: C2 Kuljetus jatkokäsittelyyn | G17: 0 | H17: Ei vähimmäisvaatimuksia
B18: C3 Jätteenkäsittely | G18: 0 | H18: Ei vähimmäisvaatimuksia
B19: C4 Loppusijoitus | G19: 0 | H19: Ei vähimmäisvaatimuksia
B20: D Elinkaaren ulkopuoliset | G20: 0 | H20: Ei vähimmäisvaatimuksia
B21: Yhteensä | C21: =SUM(C11:C20) -> 0 | D21: =SUM(D11:D20) -> 0 | E21: 0 | F21: 0
B23: Tietojen laadun arvioinnissa käytettävä pisteytys
C24: 0 | D24: 1 | F24: 2 | H24: 3
B25: Teknologinen edustavuus | C25: Ei arvioitu | D25: Tieto ei vastaa tyydyttävästi tuotteen teknisiä ominaisuuksia | F25: Tieto vastaa osittain tuotteen teknisiä ominaisuuksia | H25: Käytetty tieto vastaa hyvin tuotteen teknisiä ominaisuuksia
B26: Maantieteellinen edustavuus | C26: Ei arvioitu | D26: Tieto viittaa täysin erilaiseen maantieteelliseen kontekstiin (esim. Italia Suomen sijaan) | F26: Tieto viittaa samankaltaiseen maantieteelliseen kontekstiin (esim. Norja Suomen sijaan) | H26: Käytetty tieto viittaa tiettyyn maantieteelliseen kontekstiin
B27: Ajallinen edustavuus | C27: Ei arvioitu | D27: Tiedon validoinnin ja sen hyödyntämisen välillä on yli 6 vuotta | F27: Tiedon validoinnin ja sen hyödyntämisen välillä on 2-4 vuotta | H27: Tiedon validoinnin ja sen hyödyntämisen välillä on alle 2 vuotta
B28: Epävarmuus | C28: Ei arvioitu | D28: Käytetään mallinnettua tai vastaavaa tietoa. Paikkansapitävyys ja täsmällisyys on arvioitu laadullisesti (esim. toimittajan ja prosessin operaattorin asiantuntija-arvio) | F28: Käytetään mallinnettua tai vastaavaa tietoa, joka on arvioitu tyydyttävän paikkansapitäväksi ja täsmälliseksi, ja sitä tukee määrällinen epävarmuusarvio | H28: Käytetään hankekohtaista ja validoitua tietoa, jota voidaan pitää tyydyttävän paikkansapitävänä ja täsmällisenä (esim. tehty vahvistettu EPD)
B30: Selvitys käytetyistä lähteistä
B31: Kirjaa alla olevaan tilaan mistä lähteistä arvioinnissa käytetyt tiedot ja oletukset ovat peräisin.

Sheet Tulokset
B2: =Ohje!B2 -> Rakennuksen hiilijalanjäljen arviointityökalun luonnos
B3: =Ohje!B3 -> Luonnos lausuntokierrosta varten 16.11.2018
B5: Laskennan tulokset
B7: Lähtötiedot
B8: Rakennuskohteen tiedot | C8: Rakennustunnus
C9: Osoite
C10: Rakennustyyppi
B11: Rakennuksen tekniset tiedot | C11: Kerrosala [kem2]
C12: Lämmitetty nettoala [m2netto]
C13: Kerrosten lukumäärä
C14: Kellarikerrosten lukumäärä
C15: Pääasiallinen runkomateriaali
C16: Energialuokka
B17: Laskennan tiedot | C17: Laskenta-ajanjakso | D17: =IF(D10="","",IF(D10=Datalehti!H34,75,50)) -> 
C18: Arvioinnin tekovaihe
C19: Käytetty arviointitapa
C20: Rakennuksen arvioitu käyttöönottovuosi
B22: Elinkaariarvioinnin tulokset | D22: Hiilijalanjälki | E22: Hiilikädenjälki
D23: kg CO2e/m2netto | E23: kg CO2e/m2netto
B24: Elinkaaren aikana syntyvät päästöt yhteensä (A-D) | D24: =IFERROR(('Ennen käyttöä (A)'!C8+'Käyttö (B)'!D9+'Loppu ja lisätiedot (C+D)'!D9)/$D12,"") ->  | E24: =IFERROR(('Ennen käyttöä (A)'!D8+'Käyttö (B)'!E9+'Loppu ja lisätiedot (C+D)'!E9)/$D12,"") -> 
H25: =D22 -> Hiilijalanjälki | I25: =E22 -> Hiilikädenjälki
B26: Päästöt ennen käyttöä (vaiheet A1-5) | D26: =IFERROR('Ennen käyttöä (A)'!C8/$D12,"") ->  | E26: =IFERROR('Ennen käyttöä (A)'!D8/$D12,"") ->  | G26: =B35 -> Elinkaaren ulkopuoliset vaikutukset (D) | H26: =D35 -> 
B27: Tontti | D27: =IFERROR('Ennen käyttöä (A)'!C11/$D12,"") ->  | E27: =IFERROR('Ennen käyttöä (A)'!D11/$D12,"") ->  | G27: =B33 -> Päästöt käytön jälkeen (vaihe C) | H27: =D33 -> 
B28: Kantavat rakenteet | D28: =IFERROR('Ennen käyttöä (A)'!C12/$D12,"") ->  | E28: =IFERROR('Ennen käyttöä (A)'!D12/$D12,"") ->  | G28: =B31 -> Päästöt käytön aikana (vaiheet B3-4, 6) | H28: =D31 -> 
B29: Kevyet rakenteet | D29: =IFERROR('Ennen käyttöä (A)'!C13/$D12,"") ->  | E29: =IFERROR('Ennen käyttöä (A)'!D13/$D12,"") ->  | G29: =B26 -> Päästöt ennen käyttöä (vaiheet A1-5) | H29: =D26 -> 
B30: Talotekniikka | D30: =IFERROR('Ennen käyttöä (A)'!C14/$D12,"") ->  | E30: =IFERROR('Ennen käyttöä (A)'!D14/$D12,"") ->  | G30: =B30 -> Talotekniikka | H30: =D30 -> 
B31: Päästöt käytön aikana (vaiheet B3-4, 6) | D31: =IFERROR('Käyttö (B)'!D9/$D12,"") ->  | E31: =IFERROR('Käyttö (B)'!E9/$D12,"") ->  | G31: =B29 -> Kevyet rakenteet | H31: =D29 -> 
G32: =B28 -> Kantavat rakenteet | H32: =D28 -> 
B33: Päästöt käytön jälkeen (vaihe C) | D33: =IFERROR(('Loppu ja lisätiedot (C+D)'!D9-'Loppu ja lisätiedot (C+D)'!D29)/$D12,"") ->  | E33: =IFERROR(('Loppu ja lisätiedot (C+D)'!E9-'Loppu ja lisätiedot (C+D)'!E29)/$D12,"") ->  | G33: =B27 -> Tontti | H33: =D27 -> 
B35: Elinkaaren ulkopuoliset vaikutukset (D) | D35: =IFERROR('Loppu ja lisätiedot (C+D)'!D29/$D12,"") ->  | E35: =IFERROR('Loppu ja lisätiedot (C+D)'!E29/$D12,"") -> 
B37: Arvionnin tekijät
C38: Arvioinnin laatija | D38: Arvioinnin tarkastaja
B39: Nimi
B40: Koulutus
B41: Päivämäärä

Sheet Materiaalitiedot
B2: =Ohje!B2 -> Rakennuksen hiilijalanjäljen arviointityökalun luonnos
B3: =Ohje!B3 -> Luonnos lausuntokierrosta varten 16.11.2018
B5: Materiaalitiedot
B6: © VTT 2018. Testausvaiheen geneerinen päästötaulukko perustuu VTT:n eri lähteistä kokoamiin ja arvioimiin tuloksiin. Arvot on koottu siten, että ne kattavat elinkaaren vaiheet A1 - A5 (vaiheessa A5 vain arvioidun hukan osalta). VTT:llä on yksinomainen omistus- ja tekijänoikeus kokonaistaulukkoon. Taulukkoa saa käyttää testaamiseen eikä sitä saa muuttaa, käyttää eikä luovuttaa käytettäväksi muuhun tarkoitukseen ilman VTT:n nimenomaista suostumusta. Taulukko on tarkoitettu vain menetelmän testausvaiheeseen eikä VTT ota vastuuta siihen sisältyvien tietojen oikeellisuudesta.
B7: Materiaali | C7: CO2e | D7: Hiilisisältö | E7: CO2e | F7: Hiilijalanjälki | G7: Hiilikädenjälki | H7: Yksikkö
B8: BETONI | C8: kg/kg | D8: kg CO2/kg | E8: kg/m2
B9: Betoni, lattiabetoni (35) | C9: 0.155 | F9: =IF(E9="",IF(C9="","",C9),E9) -> 0.155 | G9: =IF(F9="","",D9*-1) -> 0.00 | H9: =IF(F9="","",(IF(E9="","CO2e/kg","CO2e/m2"))) -> CO2e/kg | I9: =IF(F9="","",(IF(E9="","kg","m2"))) -> kg | J9: Huom: Betoni- ja sementtituotteiden hiilikädenjälki (keskimääräiset karbonatisoitumistiedot) laaditaan lausuntokierroksen jälkeen.
B10: Betonikuori 100 mm+musta teräs | C10: 0.191 | F10: 0.191 | G10: =IF(F10="","",D10*-1) -> 0.00 | H10: =IF(F10="","",(IF(E10="","CO2e/kg","CO2e/m2"))) -> CO2e/kg | I10: =IF(F10="","",(IF(E10="","kg","m2"))) -> kg
B11: Betonikuori 150 mm+musta teräs | C11: 0.193 | F11: 0.193 | G11: 0.00 | H11: CO2e/kg | I11: kg
B12: Betonikuori 80 mm+musta teräs | C12: 0.190 | F12: 0.190 | G12: 0.00 | H12: CO2e/kg | I12: kg
B13: Betoniulkokuori+ruostumaton teräs | C13: 0.211 | F13: 0.211 | G13: 0.00 | H13: CO2e/kg | I13: kg
B14: Elementti, betoniväliseinä | C14: 0.202 | F14: 0.202 | G14: 0.00 | H14: CO2e/kg | I14: kg
B15: Betoni 16/20 Mpa | C15: =0.1*1.1+(20*(0.038/1000)) -> 0.111 | F15: 0.111 | G15: 0.00 | H15: CO2e/kg | I15: kg | J15: Pelkkä betoni, ei raudoituksia.
B16: Betoni 20/25 Mpa | C16: =0.107*1.1+(20*(0.038/1000)) -> 0.118 | F16: 0.118 | G16: 0.00 | H16: CO2e/kg | I16: kg
B17: Betoni 25/30 Mpa | C17: =0.113*1.1+(20*(0.038/1000)) -> 0.125 | F17: 0.125 | G17: 0.00 | H17: CO2e/kg | I17: kg
B18: Betoni 28/35 Mpa | C18: =0.12*1.1+(20*(0.038/1000)) -> 0.133 | F18: 0.133 | G18: 0.00 | H18: CO2e/kg | I18: kg
B19: Betoni 32/40 Mpa | C19: =0.132*1.1+(20*(0.038/1000)) -> 0.146 | F19: 0.146 | G19: 0.00 | H19: CO2e/kg | I19: kg
B20: Betoni 40/50 Mpa | C20: =0.151*1.1+(20*(0.038/1000)) -> 0.167 | F20: 0.167 | G20: 0.00 | H20: CO2e/kg | I20: kg
B21: Betoni, pihalaatta | C21: 0.137 | F21: 0.137 | G21: 0.00 | H21: CO2e/kg | I21: kg
B22: Betoni, kattotiili | C22: 0.152 | F22: 0.152 | G22: 0.00 | H22: CO2e/kg | I22: kg
B23: Betoni, harkko | C23: 0.101 | F23: 0.101 | G23: 0.00 | H23: CO2e/kg | I23: kg
B24: Kevytbetoni, harkko (siporex) | C24: 0.291 | F24: 0.291 | G24: 0.00 | H24: CO2e/kg | I24: kg
B26: ERISTE
B27: Eriste, EPS | C27: 3.407 | F27: 3.407 | G27: 0.00 | H27: CO2e/kg | I27: kg
B28: Eriste, kierrätyspaperi 45 kg/m3 | C28: 0.222 | F28: 0.222 | G28: 0.00 | H28: CO2e/kg | I28: kg
B29: Eriste, kierrätyspaperi, 55 kg/m3 | C29: 0.222 | F29: 0.222 | G29: 0.00 | H29: CO2e/kg | I29: kg
B30: Eriste, kierrätyspaperi, puhallus 35 kg/m3 | C30: 0.218 | F30: 0.218 | G30: 0.00 | H30: CO2e/kg | I30: kg
B31: Eriste, lasivilla, erikoisjäykkä 100 kg/m3 | C31: 1.530 | F31: 1.530 | G31: 0.00 | H31: CO2e/kg | I31: kg
B32: Eriste, lasivilla, pehmeä 45 kg/m3 | C32: 1.530 | F32: 1.530 | G32: 0.00 | H32: CO2e/kg | I32: kg
B33: Eriste, polyuretaani, 40 kg/m3 | C33: 4.354 | F33: 4.354 | G33: 0.00 | H33: CO2e/kg | I33: kg
B34: Eriste, polyuretaani, 60 kg/m3 | C34: 4.354 | F34: 4.354 | G34: 0.00 | H34: CO2e/kg | I34: kg
B35: Eriste, vuorivilla, erikoisjäykkä, 100 kg/m3 | C35: 1.026 | F35: 1.026 | G35: 0.00 | H35: CO2e/kg | I35: kg
B36: Eriste, vuorivilla, pehmeä 35 kg/m3 | C36: 1.026 | F36: 1.026 | G36: 0.00 | H36: CO2e/kg | I36: kg
B37: Eriste, vuorivilla, puhallusvilla, 15 kg/m3 | C37: 1.006 | F37: 1.006 | G37: 0.00 | H37: CO2e/kg | I37: kg
B38: Eriste, vuorivilla, tuulensuoja, 65 kg/m3 | C38: 1.026 | F38: 1.026 | G38: 0.00 | H38: CO2e/kg | I38: kg
B39: Eriste, XPS, 50 kg/m3 | C39: 3.407 | F39: 3.407 | G39: 0.00 | H39: CO2e/kg | I39: kg
B40: Eriste, tuulensuoja, lasivilla, 75 kg/m3 | C40: 1.153 | F40: 1.153 | G40: 0.00 | H40: CO2e/kg | I40: kg
B42: METALLI
B43: Alumiini | C43: 2.34 | F43: 2.338 | G43: 0.00 | H43: CO2e/kg | I43: kg
B44: Kupari | C44: 2.72 | F44: 2.718 | G44: 0.00 | H44: CO2e/kg | I44: kg
B45: Sinkki | C45: 3.109 | F45: 3.109 | G45: 0.00 | H45: CO2e/kg | I45: kg
B46: Galvanoitu teräs | C46: 2.757 | F46: 2.757 | G46: 0.00 | H46: CO2e/kg | I46: kg
B47: Ruostumaton teräs | C47: 4.758 | F47: 4.758 | G47: 0.00 | H47: CO2e/kg | I47: kg
B48: Rauta | C48: 2.053 | F48: 2.053 | G48: 0.00 | H48: CO2e/kg | I48: kg
B50: MUOVIT ja KUMIT
B51: Bitumi | C51: 0.33 | F51: 0.334 | G51: 0.00 | H51: CO2e/kg | I51: kg
B52: EPDM | C52: 2.69 | F52: 2.694 | G52: 0.00 | H52: CO2e/kg | I52: kg
B53: EPS | C53: 3.31 | F53: 3.306 | G53: 0.00 | H53: CO2e/kg | I53: kg
B54: MF (melamiini, laminaatti) | C54: 4.62 | F54: 4.623 | G54: 0.00 | H54: CO2e/kg | I54: kg
B55: PA (nylon) | C55: 7.24 | F55: 7.238 | G55: 0.00 | H55: CO2e/kg | I55: kg
B56: PC (polykarbonaatti) | C56: 4.17 | F56: 4.168 | G56: 0.00 | H56: CO2e/kg | I56: kg
B57: PE-HD | C57: 1.84 | F57: 1.838 | G57: 0.00 | H57: CO2e/kg | I57: kg
B58: PE-LD | C58: 1.91 | F58: 1.908 | G58: 0.00 | H58: CO2e/kg | I58: kg
B59: PE-MD | C59: 1.83 | F59: 1.828 | G59: 0.00 | H59: CO2e/kg | I59: kg
B60: PET | C60: 2.23 | F60: 2.228 | G60: 0.00 | H60: CO2e/kg | I60: kg
B61: PEX | C61: 1.84 | F61: 1.838 | G61: 0.00 | H61: CO2e/kg | I61: kg
B62: PMMA (akryyli, sheet) | C62: 4.81 | F62: 4.808 | G62: 0.00 | H62: CO2e/kg | I62: kg
B63: PP | C63: 1.67 | F63: 1.668 | G63: 0.00 | H63: CO2e/kg | I63: kg
B64: PS (polystyreeni) | C64: 3.43 | F64: 3.430 | G64: 0.00 | H64: CO2e/kg | I64: kg
B65: PUR (polyuretaani) | C65: 2.94 | F65: 2.938 | G65: 0.00 | H65: CO2e/kg | I65: kg
B66: PVC | C66: 2.03 | F66: 2.028 | G66: 0.00 | H66: CO2e/kg | I66: kg
B67: XPS | C67: 2.59 | F67: 2.588 | G67: 0.00 | H67: CO2e/kg | I67: kg
B69: KOSTEUSERISTE
B70: Kosteussulku | C70: 3.00 | F70: 3.000 | G70: 0.00 | H70: CO2e/kg | I70: kg
B72: KATE
B73: Kate, betonikattotiili | C73: 0.16 | F73: =IF(E73="",IF(C73="","",C73),E73) -> 0.163 | G73: 0.00 | H73: =IF(F73="","",(IF(E73="","CO2e/kg","CO2e/m2"))) -> CO2e/kg | I73: kg
B74: Kate, aluskermi, 2,4 kg/m2 | C74: 2.29 | E74: 5.5 | F74: 5.489 | G74: =IF(F74="","",D74*-1) -> 0.00 | H74: CO2e/m2 | I74: =IF(F74="","",(IF(E74="","kg","m2"))) -> m2
B75: Kate, bitumikattolaatta, 8,5 kg/m2 | C75: 2.29 | E75: 19.5 | F75: 19.494 | G75: 0.00 | H75: CO2e/m2 | I75: m2
B76: Kate, bitumikermi, pinta + 2 alus, 13,3 kg/m2 | C76: 0.97 | E76: 12.6 | F76: 12.628 | G76: 0.00 | H76: CO2e/m2 | I76: m2
B77: Kate, kupari | C77: 2.10 | F77: 2.104 | G77: 0.00 | H77: CO2e/kg | I77: kg
B78: Kate, teräs, sinkitty | C78: 2.75 | F78: 2.750 | G78: 0.00 | H78: CO2e/kg | I78: kg
B79: Kate, teräs, sinkitty ja maali | C79: 2.91 | F79: 2.910 | G79: 0.00 | H79: CO2e/kg | I79: kg
B81: LAATTA
B82: Laatta, betoni + teräkset | C82: 0.15 | F82: 0.155 | G82: 0.00 | H82: CO2e/kg | I82: kg
B83: Laatta, ontelolaatta, 150 | C83: 0.18 | F83: 0.178 | G83: 0.00 | H83: CO2e/kg | I83: kg
B84: Laatta, ontelolaatta, 200 | C84: 0.18 | F84: 0.178 | G84: 0.00 | H84: CO2e/kg | I84: kg
B85: Laatta, ontelolaatta, 265 | C85: 0.18 | F85: 0.178 | G85: 0.00 | H85: CO2e/kg | I85: kg
B86: Laatta, ontelolaatta, 320 | C86: 0.18 | F86: 0.178 | G86: 0.00 | H86: CO2e/kg | I86: kg
B87: Laatta, ontelolaatta, 400 | C87: 0.18 | F87: 0.178 | G87: 0.00 | H87: CO2e/kg | I87: kg
B88: Laatta, ontelolaatta, 500 | C88: 0.18 | F88: 0.178 | G88: 0.00 | H88: CO2e/kg | I88: kg
B89: Laatta, TT | C89: 0.22 | F89: 0.222 | G89: 0.00 | H89: CO2e/kg | I89: kg
B90: Liittolaatta | C90: 0.37 | F90: 0.372 | G90: 0.00 | H90: CO2e/kg | I90: kg
B92: PÄÄLLYSTE
B93: Lattiapäällyste, muovimatto | C93: 1.396 | F93: 1.396 | G93: 0.00 | H93: CO2e/kg | I93: kg
B94: Lattiapäällyste, parketti + alusrak. | C94: 0.643 | F94: 0.643 | G94: 0.00 | H94: CO2e/kg | I94: kg
B95: Lattiapäällyste, linoleum | C95: 0.388 | F95: 0.388 | G95: 0.00 | H95: CO2e/kg | I95: kg
B96: Lattiapäällyste, kumi | C96: 3.14 | F96: 3.136 | G96: 0.00 | H96: CO2e/kg | I96: kg
B97: Lattiapäällyste, epokshartsi | C97: 4.07 | F97: 4.069 | G97: 0.00 | H97: CO2e/kg | I97: kg
B99: LEVY
B100: Levy, kipsilevy | C100: 0.419 | F100: 0.419 | G100: 0.00 | H100: CO2e/kg | I100: kg
B101: Levy, kovalevy | C101: 0.316 | F101: 0.316 | G101: 0.00 | H101: CO2e/kg | I101: kg
B102: Levy, kuitulevy, tuulensuoja | C102: 0.457 | D102: 1.53 | F102: 0.457 | G102: -1.53 | H102: CO2e/kg | I102: kg
B103: Levy, lastulevy | C103: 0.614 | D103: 1.06 | F103: 0.614 | G103: -1.06 | H103: CO2e/kg | I103: kg
B104: Levy, vaneri | C104: 0.283 | D104: 1.64 | F104: 0.283 | G104: -1.64 | H104: CO2e/kg | I104: kg
B105: Levy, CLT | C105: 0.210 | D105: 1.55 | F105: 0.210 | G105: -1.55 | H105: CO2e/kg | I105: kg
B106: Levy, kuitusementti | C106: 0.707 | F106: 0.707 | G106: 0.00 | H106: CO2e/kg | I106: kg
B107: Levy, viilupuu | C107: 0.395 | D107: =1020/680 -> 1.50 | F107: 0.395 | G107: -1.50 | H107: CO2e/kg | I107: kg
B108: Levy, OSB | C108: 0.443 | D108: =810/623.33 -> 1.30 | F108: 0.443 | G108: -1.30 | H108: CO2e/kg | I108: kg
B110: PINTAKÄSITTELY
B111: Maali, sisä, akrylaatti | C111: 2.126 | F111: 2.126 | G111: 0.00 | H111: CO2e/kg | I111: kg
B112: Maali, sisä, alkydi | C112: 1.864 | F112: 1.864 | G112: 0.00 | H112: CO2e/kg | I112: kg
B113: Maali, punamulta | C113: 0.445 | F113: 0.445 | G113: 0.00 | H113: CO2e/kg | I113: kg
B114: Maali, pellavaöljy | C114: 1.538 | F114: 1.538 | G114: 0.00 | H114: CO2e/kg | I114: kg
B115: Maali, ulko, vesiohenteinen | C115: 1.840 | F115: 1.840 | G115: 0.00 | H115: CO2e/kg | I115: kg
B116: Maali, sisä, vesiohenteinen | C116: 1.640 | F116: 1.640 | G116: 0.00 | H116: CO2e/kg | I116: kg
B118: TASOITE
B119: Tasoite, sementtipohj. | C119: 0.185 | F119: 0.185 | G119: 0.00 | H119: CO2e/kg | I119: kg
B120: Tasoite, polymeeripohj. | C120: 0.361 | F120: 0.361 | G120: 0.00 | H120: CO2e/kg | I120: kg
B122: MUURAUS
B123: Muuraus, kahi 85+laasti | C123: 0.151 | F123: 0.151 | G123: 0.00 | H123: CO2e/kg | I123: kg
B124: Muuraus, kahiharkko, 130+laasti | C124: 0.154 | F124: 0.154 | G124: 0.00 | H124: CO2e/kg | I124: kg
B125: Muuraus, kevytsoraharkko+laasti | C125: 0.298 | F125: 0.298 | G125: 0.00 | H125: CO2e/kg | I125: kg
B126: Muuraus, lämpöharkko+EPS+laasti | C126: 0.378 | F126: 0.378 | G126: 0.00 | H126: CO2e/kg | I126: kg
B127: Muuraus, poltettu tiili 130+laasti | C127: 0.241 | F127: 0.241 | G127: 0.00 | H127: CO2e/kg | I127: kg
B128: Muuraus, poltettu tiili 85+laasti | C128: 0.204 | F128: 0.204 | G128: 0.00 | H128: CO2e/kg | I128: kg
B129: Muuraus, Siporex+ohutsaumauslaasti | C129: 0.288 | F129: 0.288 | G129: 0.00 | H129: CO2e/kg | I129: kg
B131: HIRSI
B132: Hirsiseinä, 270 mm | C132: 0.112 | D132: 1.55 | E132: 10.0 | F132: 10.000 | G132: -1.55 | H132: CO2e/m2 | I132: m2
B133: Liimahirsi | C133: 0.142 | D133: =0.95*D132 -> 1.4725 | F133: 0.142 | G133: -1.47 | H133: CO2e/kg | I133: kg
B135: ULKOVERHOILU
B136: Verhoilu, alumiinikasetti | C136: 3.20 | F136: =IF(E136="",IF(C136="","",C136),E136) -> 3.200 | G136: 0.00 | H136: =IF(F136="","",(IF(E136="","CO2e/kg","CO2e/m2"))) -> CO2e/kg | I136: kg
B137: Verhoilu, keraaminen laatoitus | C137: 0.70 | F137: 0.704 | G137: =IF(F137="","",D137*-1) -> 0.00 | H137: CO2e/kg | I137: =IF(F137="","",(IF(E137="","kg","m2"))) -> kg
B138: Verhoilu, kuparikasetti | C138: 2.10 | F138: 2.104 | G138: 0.00 | H138: CO2e/kg | I138: kg
B139: Verhoilu, luonnonkivi, 20 mm | C139: 0.41 | E139: 21.2 | F139: 21.200 | G139: 0.00 | H139: CO2e/m2 | I139: m2
B140: Verhoilu, puu | C140: 0.09 | D140: 1.55 | F140: 0.092 | G140: -1.55 | H140: CO2e/kg | I140: kg
B141: Verhoilu, puu, lämpökäs. | C141: 0.12 | D141: 1.55 | F141: 0.122 | G141: -1.55 | H141: CO2e/kg | I141: kg
B142: Verhoilu, teräskasetti, ruostumaton | C142: 2.85 | F142: 2.846 | G142: 0.00 | H142: CO2e/kg | I142: kg
B143: Verhoilu, teräskasetti+maali | C143: 2.95 | F143: 2.950 | G143: 0.00 | H143: CO2e/kg | I143: kg
B144: Verhoilu, tiililaatta | C144: 0.23 | F144: 0.230 | G144: 0.00 | H144: CO2e/kg | I144: kg
B145: Verhoilu, turvalasi | C145: 1.34 | F145: 1.338 | G145: 0.00 | H145: CO2e/kg | I145: kg
B146: Verhoilu, laminaatti | C146: 2.99 | F146: 2.988 | G146: 0.00 | H146: CO2e/kg | I146: kg
B148: RUNKO JA PILARIT JA PALKIT
B149: Palkki, betoni+teräkset | C149: 0.196 | F149: 0.196 | G149: 0.00 | H149: CO2e/kg | I149: kg
B150: Palkki, jännepalkki | C150: 0.265 | F150: 0.265 | G150: 0.00 | H150: CO2e/kg | I150: kg
B151: Palkki tai pilari, kertopuu | C151: 0.283 | F151: 0.283 | G151: 0.00 | H151: CO2e/kg | I151: kg
B152: Palkki tai pilari, liimapuu | C152: 0.356 | D152: 1.62 | F152: 0.356 | G152: -1.62 | H152: CO2e/kg | I152: kg
B153: Palkki tai pilari, puu | C153: 0.092 | D153: 1.55 | F153: 0.092 | G153: -1.55 | H153: CO2e/kg | I153: kg
B154: Palkki, teräsristikko, pintakäsitelty | C154: 2.720 | F154: 2.720 | G154: 0.00 | H154: CO2e/kg | I154: kg
B155: Palkki, teräsputki, pintakäsitelty | C155: 2.840 | F155: 2.840 | G155: 0.00 | H155: CO2e/kg | I155: kg
B156: Palkki, teräksinen deltapalkki | C156: 2.940 | F156: 2.940 | G156: 0.00 | H156: CO2e/kg | I156: kg
B157: Pilari, betoni+teräkset | C157: 0.215 | F157: 0.215 | G157: 0.00 | H157: CO2e/kg | I157: kg
B158: Puuranka, sahatavara | C158: 0.092 | D158: 1.55 | F158: 0.092 | G158: -1.55 | H158: CO2e/kg | I158: kg
B159: Pilari, teräsputki (kylmämuovaus), pintakäsitelty | C159: 2.840 | F159: 2.840 | G159: 0.00 | H159: CO2e/kg | I159: kg
B160: Pilari, teräspilari (kuumavalsatusta levystä), pintakäsitelty | C160: 2.720 | F160: 2.720 | G160: 0.00 | H160: CO2e/kg | I160: kg
B161: Teräsranka, kuumasinkitty | C161: 2.788 | F161: 2.788 | G161: 0.00 | H161: CO2e/kg | I161: kg
B163: PERUSTUS JA PORTAAT
B164: Betoni, valmisbetoni, 35 | C164: 0.146 | F164: 0.146 | G164: 0.00 | H164: CO2e/kg | I164: kg
B165: Betoni, valmisbetoni, 80 | C165: 0.210 | F165: 0.210 | G165: 0.00 | H165: CO2e/kg | I165: kg
B166: Betoniteräs | C166: 0.474 | F166: 0.474 | G166: 0.00 | H166: CO2e/kg | I166: kg
B167: Kevytsora | C167: 0.459 | F167: 0.459 | G167: 0.00 | H167: CO2e/kg | I167: kg
B168: Kevytsoraharkko+laasti | C168: 0.298 | F168: 0.298 | G168: 0.00 | H168: CO2e/kg | I168: kg
B169: Kuitukangas | C169: 2.272 | F169: 2.272 | G169: 0.00 | H169: CO2e/kg | I169: kg
B170: Murske, 2/32 | C170: 0.006 | F170: 0.006 | G170: 0.00 | H170: CO2e/kg | I170: kg
B171: Murske, hieno ja karkea | C171: 0.012 | F171: 0.012 | G171: 0.00 | H171: CO2e/kg | I171: kg
B172: Noppakiveys | C172: 1.269 | E172: 33.0 | F172: 33.000 | G172: 0.00 | H172: CO2e/m2 | I172: m2
B173: Paalut, betoni, 300x300 | C173: 0.145 | F173: 0.145 | G173: 0.00 | H173: CO2e/kg | I173: kg
B174: Paalut, betoni, 250x250 | C174: 0.158 | F174: 0.158 | G174: 0.00 | H174: CO2e/kg | I174: kg
B175: Paalut, teräsputki | C175: 2.840 | F175: 2.840 | G175: 0.00 | H175: CO2e/kg | I175: kg
B176: Pihalaatoitus, betoni | C176: 0.137 | F176: 0.137 | G176: 0.00 | H176: CO2e/kg | I176: kg
B177: Pilari, teräs | C177: 2.840 | F177: 2.840 | G177: 0.00 | H177: CO2e/kg | I177: kg
B178: Portaat, betoni | C178: 0.247 | F178: 0.247 | G178: 0.00 | H178: CO2e/kg | I178: kg
B179: Portaat, puu | C179: 0.088 | D179: 1.55 | F179: 0.088 | G179: -1.55 | H179: CO2e/kg | I179: kg
B180: Portaat, teräs | C180: 2.840 | F180: 2.840 | G180: 0.00 | H180: CO2e/kg | I180: kg
B181: Routaeriste, EPS | C181: 3.338 | F181: 3.338 | G181: 0.00 | H181: CO2e/kg | I181: kg
B182: Sora ja hiekka | C182: 0.005 | F182: 0.005 | G182: 0.00 | H182: CO2e/kg | I182: kg
B183: Stabilointi, 30/70 | C183: 0.779 | F183: 0.779 | G183: 0.00 | H183: CO2e/kg | I183: kg
B185: IKKUNAT ja OVET ja LASISEINÄT
B186: Ikkunat, 3 lasikerrosta, 4mm | E186: 20.5 | F186: 20.475 | G186: 0.00 | H186: CO2e/m2 | I186: m2
B187: Ikkunat, 4 lasikerrosta, 4mm | E187: 27.3 | F187: 27.300 | G187: 0.00 | H187: CO2e/m2 | I187: m2
B188: Ikkunat, 3 lasikerrosta, 6mm | E188: 30.7 | F188: 30.713 | G188: 0.00 | H188: CO2e/m2 | I188: m2
B189: Ikkunat, 4 lasikerrosta, 6mm | E189: 41.0 | F189: 40.950 | G189: 0.00 | H189: CO2e/m2 | I189: m2
B190: Ikkunat, Puuikkuna, sisältää myös lasit | E190: =158.75/(1.23*1.48) -> 87.2 | F190: 87.206 | G190: 0.00 | H190: CO2e/m2 | I190: m2
B191: Ikkunat, Puu-alumiini-ikkuna, sisältää myös lasit | E191: =207.73/(1.23*1.48) -> 114.1 | F191: 114.112 | G191: 0.00 | H191: CO2e/m2 | I191: m2
B192: Lasiverhoilu ja seinät | E192: 9.9 | F192: 9.915 | G192: 0.00 | H192: CO2e/m2 | I192: m2
B193: Ovi, lasi | E193: 9.9 | F193: 9.920 | G193: 0.00 | H193: CO2e/m2 | I193: m2
B194: Ovi, sisä | E194: 35 | F194: 34.823 | G194: 0.00 | H194: CO2e/m2 | I194: m2
B195: Ovi, ulko metalli | E195: 20 | F195: 20.097 | G195: 0.00 | H195: CO2e/m2 | I195: m2
B196: Ovi, ulko, puu | E196: 61 | F196: 61.044 | G196: 0.00 | H196: CO2e/m2 | I196: m2
B198: LVI OSAT
B199: Putki, muovi | C199: 2.17 | F199: =IF(E199="",IF(C199="","",C199),E199) -> 2.168 | G199: 0.00 | H199: =IF(F199="","",(IF(E199="","CO2e/kg","CO2e/m2"))) -> CO2e/kg | I199: kg
B200: Putki, teräs | C200: 2.54 | F200: 2.538 | G200: =IF(F200="","",D200*-1) -> 0.00 | H200: CO2e/kg | I200: =IF(F200="","",(IF(E200="","kg","m2"))) -> kg
B201: Putki, alumiini | C201: 2.34 | F201: 2.338 | G201: 0.00 | H201: CO2e/kg | I201: kg
B202: Putki, komposiitti | C202: 1.96 | F202: 1.963 | G202: 0.00 | H202: CO2e/kg | I202: kg
B203: Putki, salaoja | C203: 2.39 | F203: 2.389 | G203: 0.00 | H203: CO2e/kg | I203: kg
B204: Putki, viemäri | C204: 2.05 | F204: 2.053 | G204: 0.00 | H204: CO2e/kg | I204: kg
B205: Putki, maaviemäri | C205: 0.20 | F205: 0.197 | G205: 0.00 | H205: CO2e/kg | I205: kg
B206: Putki, käyttövesi | C206: 2.39 | F206: 2.389 | G206: 0.00 | H206: CO2e/kg | I206: kg
B207: Putki, lattialämmitys | C207: 1.84 | F207: 1.838 | G207: 0.00 | H207: CO2e/kg | I207: kg
B208: Liitin, muovi | C208: 2.03 | F208: 2.028 | G208: 0.00 | H208: CO2e/kg | I208: kg
B209: Liitin, teräs | C209: 2.76 | F209: 2.757 | G209: 0.00 | H209: CO2e/kg | I209: kg
B210: Liitin, alumiini | C210: 2.34 | F210: 2.338 | G210: 0.00 | H210: CO2e/kg | I210: kg
B211: Venttiili | C211: 2.85 | F211: 2.847 | G211: 0.00 | H211: CO2e/kg | I211: kg
B212: Jakotukki | C212: 2.85 | F212: 2.847 | G212: 0.00 | H212: CO2e/kg | I212: kg
B213: Sadevesikaivo | C213: 1.63 | F213: 1.635 | G213: 0.00 | H213: CO2e/kg | I213: kg
B214: Peruskaivo | C214: 1.67 | F214: 1.668 | G214: 0.00 | H214: CO2e/kg | I214: kg
B215: Pesuallas, keraaminen | C215: 1.65 | F215: 1.648 | G215: 0.00 | H215: CO2e/kg | I215: kg
B216: Pesuallas, RST | C216: 4.76 | F216: 4.758 | G216: 0.00 | H216: CO2e/kg | I216: kg
B217: WC-istuin, keraaminen | C217: 1.65 | F217: 1.648 | G217: 0.00 | H217: CO2e/kg | I217: kg
B218: Lattiakaivo, muovi | C218: 1.67 | F218: 1.668 | G218: 0.00 | H218: CO2e/kg | I218: kg
B219: Lattiakaivo, RST teräs | C219: 4.76 | F219: 4.758 | G219: 0.00 | H219: CO2e/kg | I219: kg
... 17 more rows

Sheet Ennen käyttöä (A)
B2: =Ohje!B2 -> Rakennuksen hiilijalanjäljen arviointityökalun luonnos
B3: =Ohje!B3 -> Luonnos lausuntokierrosta varten 16.11.2018
B4: Ennen käyttöä syntyvien päästöjen yhteenveto
C6: Hiilijalanjälki | D6: Hiilikädenjälki
C7: kgCO2e | D7: kgCO2e
B8: Ennen käyttöä syntyvät päästöt yhteensä | C8: =C10+C21 -> 0 | D8: =D10+D21 -> 0
B10: Valmistus ja kuljetusvaihe (A1-4) | C10: =IF(C17="",SUM(C11:C14),C17) -> 0 | D10: =IF(D17="",SUM(D11:D14),D17) -> 0
B11: Tontti | C11: =Tontti[[#Totals],[Column8]] -> 0 | D11: =Tontti[[#Totals],[Column9]] -> 0
B12: Kantavat rakenteet | C12: =Kantavat[[#Totals],[Column8]]+Vaippa[[#Totals],[Column8]] -> 0 | D12: =Kantavat[[#Totals],[Column9]]+Vaippa[[#Totals],[Column9]] -> 0
B13: Kevyet rakenteet | C13: =Kevyet[[#Totals],[Column8]] -> 0 | D13: =Kevyet[[#Totals],[Column9]] -> 0
B14: Talotekniikka | C14: =TATE[[#Totals],[Column8]] -> 0 | D14: =TATE[[#Totals],[Column9]] -> 0
B15: Valmistusvaiheen päästöjen tulokset muodostuvat automaattisesti välilehdellä "Materiaalit" annettujen arvojen perusteella.
B17: Valmistus ja kuljetusvaihe (A1-4) tarkennettu laskenta
B19: Selitä tähän kenttään miten ja mistä tarkemmat arvot on saatu. Esitä tarvittaessa erilliset laskelmat liitteenä. Tarkempia laskelmia käytettäessä älä syötä mitään lukuja ylempään taulukkoon tai Materiaalit - välilehdelle.
B21: Työmaatoiminnot (A5) | C21: =IF(C24="",Datalehti!C36*Tulokset!$D$11,C24) -> 0 | D21: =IF(D24="",Datalehti!D36*Tulokset!$D$11,D24) -> 0
B22: Työmaatoimintojen arvot perustuvat neliömetrikohtaiseen taulukkoarvoon.
B24: Työmaatoiminnot (A5) tarkennettu laskenta
B26: Selitä tähän kenttään miten ja mistä tarkemmat arvot on saatu. Esitä tarvittaessa erilliset laskelmat liitteenä.

Sheet Materiaalit (A1-3)
B2: =Ohje!B2 -> Rakennuksen hiilijalanjäljen arviointityökalun luonnos
B3: =Ohje!B3 -> Luonnos lausuntokierrosta varten 16.11.2018
B5: Luettelo rakennuksessa käytetyistä materiaaleista
B6: Syötä rakennuksen materiaalien paino alla olevaan listaan esim. määräluettelon pohjalta laskien. Hiilijalanjäljen ja -kädenjäljen päästöt muodostuvat automaattisesti, kun määrät on syötetty. Lisää tarvittaessa rivejä kunkin otsakkeen alle Lisää rivi -napilla. | J6: kgCO2e | K6: kgCO2e
B7: Littera | C7: Rakennusosa | D7: Materiaalin tyyppi | E7: Materiaali | G7: Määrä | J7: Hiilijalanjälki | K7: Hiilikädenjälki
B10: Tontti (1.1. Alueosat)
H11: =IF(E11="","",VLOOKUP(E11,Materiaalitiedot!B:I,8,FALSE)) ->  | J11: =IF(E11="","",G11*VLOOKUP(E11,Materiaalitiedot!B:H,5,FALSE)) ->  | K11: =IF(E11="","",G11*VLOOKUP(E11,Materiaalitiedot!B:H,6,FALSE)) -> 
H12: =IF(E12="","",VLOOKUP(E12,Materiaalitiedot!B:I,8,FALSE)) ->  | J12: =IF(E12="","",G12*VLOOKUP(E12,Materiaalitiedot!B:H,5,FALSE)) ->  | K12: =IF(E12="","",G12*VLOOKUP(E12,Materiaalitiedot!B:H,6,FALSE)) -> 
H13: =IF(E13="","",VLOOKUP(E13,Materiaalitiedot!B:I,8,FALSE)) ->  | J13: =IF(E13="","",G13*VLOOKUP(E13,Materiaalitiedot!B:H,5,FALSE)) ->  | K13: =IF(E13="","",G13*VLOOKUP(E13,Materiaalitiedot!B:H,6,FALSE)) -> 
H14: =IF(E14="","",VLOOKUP(E14,Materiaalitiedot!B:I,8,FALSE)) ->  | J14: =IF(E14="","",G14*VLOOKUP(E14,Materiaalitiedot!B:H,5,FALSE)) ->  | K14: =IF(E14="","",G14*VLOOKUP(E14,Materiaalitiedot!B:H,6,FALSE)) -> 
H15: =IF(E15="","",VLOOKUP(E15,Materiaalitiedot!B:I,8,FALSE)) ->  | J15: =IF(E15="","",G15*VLOOKUP(E15,Materiaalitiedot!B:H,5,FALSE)) ->  | K15: =IF(E15="","",G15*VLOOKUP(E15,Materiaalitiedot!B:H,6,FALSE)) -> 
B16: Total | J16: =SUBTOTAL(109,Tontti[Column8]) -> 0 | K16: =SUBTOTAL(109,Tontti[Column9]) -> 0
B18: Kantavat rakenteet (1.2.1-1.2.3 Talo-osat)
H19: =IF(E19="","",VLOOKUP(E19,Materiaalitiedot!B:I,8,FALSE)) ->  | J19: =IF(E19="","",G19*VLOOKUP(E19,Materiaalitiedot!B:H,5,FALSE)) ->  | K19: =IF(E19="","",G19*VLOOKUP(E19,Materiaalitiedot!B:H,6,FALSE)) -> 
H20: =IF(E20="","",VLOOKUP(E20,Materiaalitiedot!B:I,8,FALSE)) ->  | J20: =IF(E20="","",G20*VLOOKUP(E20,Materiaalitiedot!B:H,5,FALSE)) ->  | K20: =IF(E20="","",G20*VLOOKUP(E20,Materiaalitiedot!B:H,6,FALSE)) -> 
H21: =IF(E21="","",VLOOKUP(E21,Materiaalitiedot!B:I,8,FALSE)) ->  | J21: =IF(E21="","",G21*VLOOKUP(E21,Materiaalitiedot!B:H,5,FALSE)) ->  | K21: =IF(E21="","",G21*VLOOKUP(E21,Materiaalitiedot!B:H,6,FALSE)) -> 
H22: =IF(E22="","",VLOOKUP(E22,Materiaalitiedot!B:I,8,FALSE)) ->  | J22: =IF(E22="","",G22*VLOOKUP(E22,Materiaalitiedot!B:H,5,FALSE)) ->  | K22: =IF(E22="","",G22*VLOOKUP(E22,Materiaalitiedot!B:H,6,FALSE)) -> 
H23: =IF(E23="","",VLOOKUP(E23,Materiaalitiedot!B:I,8,FALSE)) ->  | J23: =IF(E23="","",G23*VLOOKUP(E23,Materiaalitiedot!B:H,5,FALSE)) ->  | K23: =IF(E23="","",G23*VLOOKUP(E23,Materiaalitiedot!B:H,6,FALSE)) -> 
B24: Total | J24: =SUBTOTAL(109,Kantavat[Column8]) -> 0 | K24: =SUBTOTAL(109,Kantavat[Column9]) -> 0
B26: Vaippa (1.2.4-1.2.6 Talo-osat)
H27: =IF(E27="","",VLOOKUP(E27,Materiaalitiedot!B:I,8,FALSE)) ->  | J27: =IF(E27="","",G27*VLOOKUP(E27,Materiaalitiedot!B:H,5,FALSE)) ->  | K27: =IF(E27="","",G27*VLOOKUP(E27,Materiaalitiedot!B:H,6,FALSE)) -> 
H28: =IF(E28="","",VLOOKUP(E28,Materiaalitiedot!B:I,8,FALSE)) ->  | J28: =IF(E28="","",G28*VLOOKUP(E28,Materiaalitiedot!B:H,5,FALSE)) ->  | K28: =IF(E28="","",G28*VLOOKUP(E28,Materiaalitiedot!B:H,6,FALSE)) -> 
H29: =IF(E29="","",VLOOKUP(E29,Materiaalitiedot!B:I,8,FALSE)) ->  | J29: =IF(E29="","",G29*VLOOKUP(E29,Materiaalitiedot!B:H,5,FALSE)) ->  | K29: =IF(E29="","",G29*VLOOKUP(E29,Materiaalitiedot!B:H,6,FALSE)) -> 
H30: =IF(E30="","",VLOOKUP(E30,Materiaalitiedot!B:I,8,FALSE)) ->  | J30: =IF(E30="","",G30*VLOOKUP(E30,Materiaalitiedot!B:H,5,FALSE)) ->  | K30: =IF(E30="","",G30*VLOOKUP(E30,Materiaalitiedot!B:H,6,FALSE)) -> 
H31: =IF(E31="","",VLOOKUP(E31,Materiaalitiedot!B:I,8,FALSE)) ->  | J31: =IF(E31="","",G31*VLOOKUP(E31,Materiaalitiedot!B:H,5,FALSE)) ->  | K31: =IF(E31="","",G31*VLOOKUP(E31,Materiaalitiedot!B:H,6,FALSE)) -> 
B32: Total | J32: =SUBTOTAL(109,Vaippa[Column8]) -> 0 | K32: =SUBTOTAL(109,Vaippa[Column9]) -> 0
B34: Kevyet rakenteet (1.3 Tila-osat)
H35: =IF(E35="","",VLOOKUP(E35,Materiaalitiedot!B:I,8,FALSE)) ->  | J35: =IF(E35="","",G35*VLOOKUP(E35,Materiaalitiedot!B:H,5,FALSE)) ->  | K35: =IF(E35="","",G35*VLOOKUP(E35,Materiaalitiedot!B:H,6,FALSE)) -> 
H36: =IF(E36="","",VLOOKUP(E36,Materiaalitiedot!B:I,8,FALSE)) ->  | J36: =IF(E36="","",G36*VLOOKUP(E36,Materiaalitiedot!B:H,5,FALSE)) ->  | K36: =IF(E36="","",G36*VLOOKUP(E36,Materiaalitiedot!B:H,6,FALSE)) -> 
H37: =IF(E37="","",VLOOKUP(E37,Materiaalitiedot!B:I,8,FALSE)) ->  | J37: =IF(E37="","",G37*VLOOKUP(E37,Materiaalitiedot!B:H,5,FALSE)) ->  | K37: =IF(E37="","",G37*VLOOKUP(E37,Materiaalitiedot!B:H,6,FALSE)) -> 
H38: =IF(E38="","",VLOOKUP(E38,Materiaalitiedot!B:I,8,FALSE)) ->  | J38: =IF(E38="","",G38*VLOOKUP(E38,Materiaalitiedot!B:H,5,FALSE)) ->  | K38: =IF(E38="","",G38*VLOOKUP(E38,Materiaalitiedot!B:H,6,FALSE)) -> 
H39: =IF(E39="","",VLOOKUP(E39,Materiaalitiedot!B:I,8,FALSE)) ->  | J39: =IF(E39="","",G39*VLOOKUP(E39,Materiaalitiedot!B:H,5,FALSE)) ->  | K39: =IF(E39="","",G39*VLOOKUP(E39,Materiaalitiedot!B:H,6,FALSE)) -> 
B40: Total | J40: =SUBTOTAL(109,Kevyet[Column8]) -> 0 | K40: =SUBTOTAL(109,Kevyet[Column9]) -> 0
B42: Talotekniikka (2.1-2.4 Tekniikkaosat)
H43: =IF(E43="","",VLOOKUP(E43,Materiaalitiedot!B:I,8,FALSE)) ->  | J43: =IF(E43="","",G43*VLOOKUP(E43,Materiaalitiedot!B:H,5,FALSE)) ->  | K43: =IF(E43="","",G43*VLOOKUP(E43,Materiaalitiedot!B:H,6,FALSE)) -> 
H44: =IF(E44="","",VLOOKUP(E44,Materiaalitiedot!B:I,8,FALSE)) ->  | J44: =IF(E44="","",G44*VLOOKUP(E44,Materiaalitiedot!B:H,5,FALSE)) ->  | K44: =IF(E44="","",G44*VLOOKUP(E44,Materiaalitiedot!B:H,6,FALSE)) -> 
H45: =IF(E45="","",VLOOKUP(E45,Materiaalitiedot!B:I,8,FALSE)) ->  | J45: =IF(E45="","",G45*VLOOKUP(E45,Materiaalitiedot!B:H,5,FALSE)) ->  | K45: =IF(E45="","",G45*VLOOKUP(E45,Materiaalitiedot!B:H,6,FALSE)) -> 
H46: =IF(E46="","",VLOOKUP(E46,Materiaalitiedot!B:I,8,FALSE)) ->  | J46: =IF(E46="","",G46*VLOOKUP(E46,Materiaalitiedot!B:H,5,FALSE)) ->  | K46: =IF(E46="","",G46*VLOOKUP(E46,Materiaalitiedot!B:H,6,FALSE)) -> 
H47: =IF(E47="","",VLOOKUP(E47,Materiaalitiedot!B:I,8,FALSE)) ->  | J47: =IF(E47="","",G47*VLOOKUP(E47,Materiaalitiedot!B:H,5,FALSE)) ->  | K47: =IF(E47="","",G47*VLOOKUP(E47,Materiaalitiedot!B:H,6,FALSE)) -> 
B48: Total | J48: =SUBTOTAL(109,TATE[Column8]) -> 0 | K48: =SUBTOTAL(109,TATE[Column9]) -> 0
B50: Kaikki materiaalit yhteensä | J50: =TATE[[#Totals],[Column8]]+Kevyet[[#Totals],[Column8]]+Vaippa[[#Totals],[Column8]]+Kantavat[[#Totals],[Column8]]+Tontti[[#Totals],[Column8]] -> 0 | K50: =TATE[[#Totals],[Column9]]+Kevyet[[#Totals],[Column9]]+Vaippa[[#Totals],[Column9]]+Kantavat[[#Totals],[Column9]]+Tontti[[#Totals],[Column9]] -> 0
J51: Hiilijalanjälki | K51: Hiilikädenjälki

Sheet Käyttö (B)
B2: =Ohje!B2 -> Rakennuksen hiilijalanjäljen arviointityökalun luonnos
B3: =Ohje!B3 -> Luonnos lausuntokierrosta varten 16.11.2018
B5: Käyttövaiheen päästöjen arviointi
D7: Hiilijalanjälki | E7: Hiilikädenjälki
D8: kgCO2e | E8: kgCO2e
B9: Ennen käyttöä syntyvät päästöt yhteensä | D9: =D11+D22 -> 0 | E9: =E11+E22 -> 0
B11: Energiankäyttö (B6) | C11: Energiankulutus (kWh/a) | D11: =IF(D18="",SUM(D12:D15),D18) -> 0 | E11: =IF(E18="",SUM(E12:E15),E18) -> 0
B12: Sähkö | D12: =IFERROR(C12*Datalehti!S14,"") ->  | E12: -
B13: Kaukolämpö | D13: =IFERROR(C13*Datalehti!S15,"") ->  | E13: -
B14: Fossiiliset polttoaineet | D14: =IFERROR(C14*Datalehti!S16,"") ->  | E14: -
B15: Uusiutuvat polttoaineet | D15: =IFERROR(C15*Datalehti!S17,"") ->  | E15: -
B16: Syötä yllä olevaan listaan rakennuksen laskennallinen vuotuinen ostoenergian kulutus energiaselvityksen tai vastaavan laskelman pohjalta. Enerigiankäytön päästöt muodostuvat automaattisesti eri energiamuotojen päästötietojen perusteella, kun kulutus on syötetty. Energiamuotojen päästökertoimia ei voi muuttaa. Energiamuodoilla ei tässä laskennassa voi olla hiilikädenjälkeä.
B18: Energiankäyttö (B6) tarkennettu laskenta
B20: Selitä tähän kenttään miten ja mistä tarkemmat arvot on saatu. Esitä tarvittaessa erilliset laskelmat liitteenä. Tarkempia laskelmia käytettäessä älä syötä mitään lukuja ylempään taulukkoon.
B22: Korjaukset ja osien vaihdot (B3-4) | D22: =Datalehti!C37*Tulokset!$D$11 -> 0 | E22: =Datalehti!D37*Tulokset!$D$11 -> 0
B23: Korjausten ja vaihtojen päästövaikutukset perustuvat taulukkoarvoihin.
B25: Korjaukset ja osien vaihdot (B3-4) tarkennettu laskenta
B27: Selitä tähän kenttään miten ja mistä tarkemmat arvot on saatu. Esitä tarvittaessa erilliset laskelmat liitteenä.

Sheet Loppu ja lisätiedot (C+D)
B2: =Ohje!B2 -> Rakennuksen hiilijalanjäljen arviointityökalun luonnos
B3: =Ohje!B3 -> Luonnos lausuntokierrosta varten 16.11.2018
B5: Elinkaaren lopun päästötiedot
D7: Hiilijalanjälki | E7: Hiilikädenjälki
D8: kgCO2e | E8: kgCO2e
B9: Elinkaaren lopussa syntyvät päästöt yhteensä | D9: =D23+D17+D11+D29 -> 0 | E9: =E23+E17+E11+E29 -> 0
B11: Purkaminen (C1) | D11: =IF(D13="",Datalehti!C38*Tulokset!$D$11,D13) -> 0 | E11: =IF(E13="",Datalehti!D38*Tulokset!$D$11,E13) -> 0
B12: Päästötiedot pohjautuvat taulukkoarvoihin.
B13: Purkaminen (C1) tarkennettu laskenta
B15: Selitä tähän kenttään miten ja mistä tarkemmat arvot on saatu. Esitä tarvittaessa erilliset laskelmat liitteenä.
B17: Kuljetukset (C2) | D17: =IF(D19="",Datalehti!C39*Tulokset!$D$11,D19) -> 0 | E17: =IF(E19="",Datalehti!D39*Tulokset!$D$11,E19) -> 0
B18: Päästötiedot pohjautuvat taulukkoarvoihin.
B19: Kuljetukset (C2) tarkennettu laskenta
B21: Selitä tähän kenttään miten ja mistä tarkemmat arvot on saatu. Esitä tarvittaessa erilliset laskelmat liitteenä.
B23: Purkujätteen loppukäsittely ja sijoitus (C3-4) | D23: =IF(D25="",Datalehti!C40*Tulokset!$D$11,D25) -> 0 | E23: =IF(E25="",Datalehti!D40*Tulokset!$D$11,E25) -> 0
B24: Päästötiedot pohjautuvat taulukkoarvoihin.
B25: Purkujätteen loppukäsittely ja sijoitus (C3-4) tarkennettu laskenta
B27: Selitä tähän kenttään miten ja mistä tarkemmat arvot on saatu. Esitä tarvittaessa erilliset laskelmat liitteenä.
B29: Elinkaaren ulkopuolella syntyvät hyödyt (D) | D29: =IF(D31="",Datalehti!C46*Tulokset!$D$11,D31) -> 0 | E29: =IF(E31="",Datalehti!D46*Tulokset!$D$11,E31) -> 0
B30: Jos uudelleenkäytön tai kierrätyksen avulla vältetyt nettopäästöt on laskettu, syötä tiedot alle.
B31: Purkujätteen uusiokäyttö (D) tarkennettu laskenta
B33: Selitä tähän kenttään miten ja mistä tarkemmat arvot on saatu. Esitä tarvittaessa erilliset laskelmat liitteenä.

Sheet Datalehti (hidden)
B3: Laskennalliset päästöt (kgCO2e /kWh)
B5: Energiamuoto | C5: 2010 | D5: 2020 | E5: 2030 | F5: 2040 | G5: 2050 | H5: 2060 | I5: 2070 | J5: 2080 | K5: 2090 | L5: 2100 | M5: 2110 | N5: 2120 | O5: 2130 | P5: 2140 | Q5: 2150
B6: Sähkö | C6: 0.09 | D6: 0.09 | E6: 0.06 | F6: 0.06 | G6: 0.06 | H6: 0.06 | I6: 0.06 | J6: 0.06 | K6: 0.06 | L6: 0.06 | M6: =L6 -> 0.06 | N6: =M6 -> 0.06 | O6: 0.06 | P6: 0.06 | Q6: 0.06
B7: Kaukolämpö | C7: 0.22 | D7: 0.22 | E7: 0.14 | F7: 0.14 | G7: 0.14 | H7: 0.14 | I7: 0.14 | J7: 0.14 | K7: 0.14 | L7: 0.14 | M7: =L7 -> 0.14 | N7: 0.14 | O7: 0.14 | P7: 0.14 | Q7: 0.14
B8: Fossiiliset | C8: 0.26 | D8: 0.26 | E8: 0.26 | F8: 0.26 | G8: 0.26 | H8: 0.26 | I8: 0.26 | J8: 0.26 | K8: 0.26 | L8: 0.26 | M8: 0.26 | N8: 0.26 | O8: 0.26 | P8: 0.26 | Q8: 0.26
B9: Uusiutuvat | C9: 0 | D9: 0 | E9: 0 | F9: 0 | G9: 0 | H9: 0 | I9: 0 | J9: 0 | K9: 0 | L9: 0 | M9: 0 | N9: 0 | O9: 0 | P9: 0 | Q9: 0
B11: Laskennan vuodet | C11: =IF(C13>$E20,IF(C13<$E22,10,IF(C13<$E22+1,$E23,0)),(IF(C13>$E20-1,10-$E21,0))) -> 
B13: Energiamuoto | C13: 2010 | D13: 2020 | E13: 2030 | F13: 2040 | G13: 2050 | H13: 2060 | I13: 2070 | J13: 2080 | K13: 2090 | L13: 2100 | M13: 2110 | N13: 2120 | O13: 2130 | P13: 2140 | Q13: 2150 | S13: Päästökerroin
B14: Sähkö | C14: =C$11*C6 ->  | S14: =SUM(C14:Q14) -> 
B15: Kaukolämpö | C15: =C$11*C7 ->  | S15: =SUM(C15:Q15) -> 
B16: Fossiiliset | C16: =C$11*C8 ->  | D16: =D$11*D8 -> 
B17: Uusiutuvat | C17: =C$11*C9 ->  | D17: =D$11*D9 -> 
E20: =INT(LEFT(C21,3)&"0") -> 0
B21: Valmistumisvuosi | C21: =Tulokset!D20 -> 0 | E21: =MOD(C21,10) -> 0
B22: Käyttöikä | C22: =Tulokset!D17 ->  | E22: =INT(LEFT(C23,3)&"0") -> 
B23: Loppuvuosi | C23: =C22+C21 ->  | E23: =MOD(C23,10) -> 
Q32: Yksikkö | R32: (Multiple Items)
G33: Hankeluokitus | Q33: materiaaliluokat lista
C34: Hiilijalanjälki | D34: Hiilikädenjälki | G34: A | H34: Asuinrakennukset | M34: raportointiaika | Q34: Row Labels
C35: kg CO2e/kem2 | D35: kg CO2e/kem2 | G35: B | H35: Vapaa-ajan asuinrakennukset | M35: Rakennuslupa | Q35: BETONI
B36: Työmaatoiminnot (A5) | C36: 9.52 | D36: 0 | G36: C | H36: Liikerakennukset | M36: Käyttöönotto | Q36: ERISTE
B37: Korjauset ja osien vaihdot (B3-4) | C37: 2.02 | D37: 0 | G37: D | H37: Toimistorakennukset | Q37: HIRSI
B38: Purkaminen (C1) | C38: 7.28 | D38: 0 | G38: E | H38: Liikenteen rakennukset | Q38: IKKUNAT ja OVET ja LASISEINÄT
B39: Kuljetukset (C2) | C39: 9.52 | D39: 0 | G39: F | H39: Hoitoalan rakennukset | M39: Tarkastelun tyyppi | Q39: KATE
B40: Purkujätteen loppukäsittely ja sijoitus (C3-4) | C40: 14.56 | D40: 0 | G40: G | H40: Kokoontumisrakennukset | M40: Yksinkertaistettu | Q40: KOSTEUSERISTE
B41: Purkujätteen uusiokäyttö (D?) | C41: 0 | D41: 0 | G41: H | H41: Opetusrakennukset | M41: Tarkennettu | Q41: LAATTA
G42: J | H42: Teollisuusrakennukset | Q42: LEVY
C43: Lauri: lisäsin nämä keskiarvoluvut. | G43: K | H43: Varastorakennukset | Q43: LVI OSAT
G44: L | H44: Palo- ja pelastustoimen rakennukset | Q44: METALLI
G45: M | H45: Maatalousrakennukset | Q45: MUOVIT ja KUMIT
G46: N | H46: Muut rakennukset | Q46: MUURAUS
Q47: PERUSTUS JA PORTAAT
Q48: PINTAKÄSITTELY
Q49: PÄÄLLYSTE
Q50: RUNKO JA PILARIT JA PALKIT
G51: Rakennuksen runkomateriaali | Q51: SÄHKÖOSAT
G52: 1 | H52: Betoni | Q52: TASOITE
G53: 2 | H53: Tiili | Q53: ULKOVERHOILU
G54: 3 | H54: Teräs | Q54: (blank)
G55: 4 | H55: Puu | Q55: Grand Total
G56: 5 | H56: Muu
